{"text_format":"1","workbook":"xlsx","n_sheets":6,"sheets":["GV-Berechnung-Gülleanfall","Mist- Trockenkotanfall","förderfähiger Anteil","Finanzierungsplan","Ranking","Stammdaten-Tierhaltung"],"not_rendered":{"charts":0,"images":1,"macros":1,"external_links":0,"defined_names":9,"comments":0,"pivot_tables":0},"unopened":[],"bounds":{"document_bytes":16777216,"sheet_cells":100000,"rows_first":2000,"rows_last":500,"rows_between":2000,"halvings":0,"cell_chars":16384,"cell_head_chars":4096},"cells_cut":0,"cells_raw":0,"read":"whole","date_system":"1900"}

{"sheet":"GV-Berechnung-Gülleanfall","index":0,"n_rows":66,"n_cols":27,"rows_kept":66,"cut":false,"hidden":false,"merged":[[24,9,24,11],[16,2,16,4],[17,2,17,4],[16,5,16,6],[17,5,17,6],[18,5,18,6],[19,7,19,8],[19,5,19,6],[20,5,20,6],[21,5,21,6],[18,7,18,8],[20,2,20,4],[21,2,21,4],[15,7,15,8],[19,2,19,4],[16,15,16,17],[17,15,17,17],[18,15,18,17],[19,15,19,17],[0,0,0,18],[6,3,6,5],[6,6,6,7],[10,15,10,17],[11,15,11,17],[12,15,12,17],[13,15,13,17],[15,15,15,17],[15,12,15,14],[16,12,16,14],[17,12,17,14],[18,2,18,4],[10,2,10,4],[11,2,11,4],[12,2,12,4],[13,2,13,4],[14,2,14,4],[15,5,15,6],[15,2,15,4],[13,7,13,8],[18,12,18,14],[19,12,19,14],[10,12,10,14],[23,2,23,4],[22,5,22,6],[23,5,23,6],[21,12,21,14],[22,12,22,14],[16,9,16,11],[17,9,17,11],[18,9,18,11],[19,9,19,11],[20,12,20,14],[10,9,10,11],[11,9,11,11],[12,9,12,11],[13,9,13,11],[16,7,16,8],[17,7,17,8],[14,9,14,11],[15,9,15,11],[12,7,12,8],[22,15,22,17],[23,15,23,17],[21,15,21,17],[23,7,23,8],[23,9,23,11],[21,7,21,8],[23,12,23,14],[22,2,22,4],[20,15,20,17],[22,7,22,8],[22,9,22,11],[21,9,21,11],[20,7,20,8],[20,9,20,11],[6,14,6,17],[6,11,6,13],[6,8,6,10],[3,0,3,17],[14,12,14,14],[9,12,9,17],[9,9,9,11],[12,5,12,6],[13,5,13,6],[14,5,14,6],[9,2,9,8],[10,5,10,8],[11,5,11,8],[14,7,14,8],[11,12,11,14],[12,12,12,14],[13,12,13,14],[14,15,14,17],[24,12,24,14],[24,15,24,17],[26,12,26,14],[27,12,27,14],[28,12,28,14],[29,12,29,14],[26,15,26,17],[28,15,28,17],[29,15,29,17],[25,12,25,14],[25,15,25,17],[41,2,41,4],[42,2,42,4],[43,2,43,4],[46,2,46,4],[27,9,27,11],[31,12,31,14],[31,15,31,17],[32,12,32,14],[32,15,32,17],[27,15,27,17],[30,15,30,17],[44,2,44,4],[45,2,45,4],[38,2,38,4],[44,6,44,17],[48,2,48,4],[41,6,42,17],[45,6,46,17],[28,2,28,4],[29,2,29,4],[30,2,30,4],[31,2,31,4],[32,2,32,4],[33,2,33,4],[33,12,33,14],[39,2,39,4],[40,2,40,4],[38,6,40,17],[33,15,33,17],[35,12,35,14],[35,15,35,17],[35,5,35,7],[34,2,34,4],[34,5,34,7],[34,15,34,17],[35,2,35,4],[47,2,47,4],[36,12,36,14],[36,15,36,17],[53,14,53,16],[50,14,50,16],[51,14,51,16],[34,12,34,14],[28,5,28,7],[29,5,29,7],[30,5,30,7],[31,5,31,7],[32,5,32,7],[33,5,33,7],[30,12,30,14]]}
["Berechnung der Großvieheinheiten und der Lagerkapazität"]
["für flüssige Wirtschaftsdünger"]
[null,null,null,null,null,null,null,null,null,null,null,null,null,null,null,null,null,null,null,null,null,"--"]
[null,null,null,null,null,null,null,null,null,null,null,null,null,null,null,null,null,null,null,null,null,"Stall"]
["Antragstellendes Unternehmen (Name, Vorname, ggf. Unternehmensbezeichnung)",null,null,null,null,null,null,null,null,null,null,null,null,null,null,null,null,null,null,null,null,"Weide"]
[null,null,null,"EU-Registriernummer",null,null,null,null,null,null,null,null,null,null,null,null,null,null,null,null,null,"Tagweide"]
[null,null,null,"Nation",null,null,"BL",null,"LK",null,null,"Gemeinde",null,null,"Betrieb"]
[null,null,null,2,7,6,"0",3]
[]
["Tierhaltung","Aufstallung1)","Ø Jahresbestand2)",null,null,null,null,null,null,"GVE3)",null,null,"Lagerraumbedarf4)"]
[null,null,"Gülle",null,null,"Mist / Jauche",null,null,null,null,null,null,"6 Monate",null,null,"9 Monate"]
[null,null,null,null,null,"Einstreumenge"]
[null,null,null,null,null,"niedrig",null,"hoch",null,null,null,null,"Menge",null,null,"Menge"]
[null,null,"Anzahl",null,null,"Anzahl",null,"Anzahl",null,null,null,null,"m3",null,null,"m3",null,null,null,null,null,"Gülle","Jauche","GVE","12 Monate","Mist","Dichte"]
[{"$f":"INDEX(Tierart,$T15)","v":"--"},{"$f":"IF($T15=1,\" --\",INDEX(Weide,$U15))","v":" --"},0,null,null,0,null,0,null,{"$f":"($C15+$F15+$H15)*X15","v":0},null,null,{"$f":"($C15*$V15/2)+($F15*$W15/2)","v":0},null,null,{"$f":"IF($U15=1,($C15*$V15/12)*9,IF($U15=2,($C15*$V15/12)*7,$C15*$V15/12*8))+IF($U15=1,($F15*$W15/12)*9,IF($U15=2,($F15*$W15/12)*7,$F15*$W15/12*8))","v":0},null,null,1,1,1,{"$f":"INDEX(Gülleanfall,'GV-Berechnung-Gülleanfall'!$T15)","v":0},{"$f":"INDEX(Jaucheanfall,'GV-Berechnung-Gülleanfall'!$T15)","v":0},{"$f":"INDEX(GVE,'GV-Berechnung-Gülleanfall'!$T15)","v":0},{"$f":"IF($U15=1,($C15*$V15/12)*12,IF($U15=2,($C15*$V15/12)*7,$C15*$V15/12*9.5))+IF($U15=1,($F15*$W15/12)*12,IF($U15=2,($F15*$W15/12)*7,$F15*$W15/12*9.5))","v":0},{"$f":"INDEX(Mistanfall,'GV-Berechnung-Gülleanfall'!$T15)","v":0},{"$f":"INDEX(MistDichte,'GV-Berechnung-Gülleanfall'!$T15)","v":0}]
["--"," --",0,null,null,0,null,0,null,0,null,null,0,null,null,0,null,null,1,1,1,{"$f":"INDEX(Gülleanfall,'GV-Berechnung-Gülleanfall'!$T16)","v":0},{"$f":"INDEX(Jaucheanfall,'GV-Berechnung-Gülleanfall'!$T16)","v":0},{"$f":"INDEX(GVE,'GV-Berechnung-Gülleanfall'!$T16)","v":0},{"$f":"IF($U16=1,($C16*$V16/12)*12,IF($U16=2,($C16*$V16/12)*7,$C16*$V16/12*9.5))+IF($U16=1,($F16*$W16/12)*12,IF($U16=2,($F16*$W16/12)*7,$F16*$W16/12*9.5))","v":0},{"$f":"INDEX(Mistanfall,'GV-Berechnung-Gülleanfall'!$T16)","v":0},{"$f":"INDEX(MistDichte,'GV-Berechnung-Gülleanfall'!$T16)","v":0}]
["--"," --",0,null,null,0,null,0,null,0,null,null,0,null,null,0,null,null,1,1,1,{"$f":"INDEX(Gülleanfall,'GV-Berechnung-Gülleanfall'!$T17)","v":0},{"$f":"INDEX(Jaucheanfall,'GV-Berechnung-Gülleanfall'!$T17)","v":0},{"$f":"INDEX(GVE,'GV-Berechnung-Gülleanfall'!$T17)","v":0},0,{"$f":"INDEX(Mistanfall,'GV-Berechnung-Gülleanfall'!$T17)","v":0},{"$f":"INDEX(MistDichte,'GV-Berechnung-Gülleanfall'!$T17)","v":0}]
["--"," --",0,null,null,0,null,0,null,0,null,null,0,null,null,0,null,null,1,1,1,{"$f":"INDEX(Gülleanfall,'GV-Berechnung-Gülleanfall'!$T18)","v":0},{"$f":"INDEX(Jaucheanfall,'GV-Berechnung-Gülleanfall'!$T18)","v":0},{"$f":"INDEX(GVE,'GV-Berechnung-Gülleanfall'!$T18)","v":0},0,{"$f":"INDEX(Mistanfall,'GV-Berechnung-Gülleanfall'!$T18)","v":0},{"$f":"INDEX(MistDichte,'GV-Berechnung-Gülleanfall'!$T18)","v":0}]
["--"," --",0,null,null,0,null,0,null,0,null,null,0,null,null,0,null,null,1,1,1,{"$f":"INDEX(Gülleanfall,'GV-Berechnung-Gülleanfall'!$T19)","v":0},{"$f":"INDEX(Jaucheanfall,'GV-Berechnung-Gülleanfall'!$T19)","v":0},{"$f":"INDEX(GVE,'GV-Berechnung-Gülleanfall'!$T19)","v":0},0,{"$f":"INDEX(Mistanfall,'GV-Berechnung-Gülleanfall'!$T19)","v":0},{"$f":"INDEX(MistDichte,'GV-Berechnung-Gülleanfall'!$T19)","v":0}]
["--"," --",0,null,null,0,null,0,null,0,null,null,0,null,null,0,null,null,1,1,1,{"$f":"INDEX(Gülleanfall,'GV-Berechnung-Gülleanfall'!$T20)","v":0},{"$f":"INDEX(Jaucheanfall,'GV-Berechnung-Gülleanfall'!$T20)","v":0},{"$f":"INDEX(GVE,'GV-Berechnung-Gülleanfall'!$T20)","v":0},0,{"$f":"INDEX(Mistanfall,'GV-Berechnung-Gülleanfall'!$T20)","v":0},{"$f":"INDEX(MistDichte,'GV-Berechnung-Gülleanfall'!$T20)","v":0}]
["--"," --",0,null,null,0,null,0,null,0,null,null,0,null,null,0,null,null,1,1,1,{"$f":"INDEX(Gülleanfall,'GV-Berechnung-Gülleanfall'!$T21)","v":0},{"$f":"INDEX(Jaucheanfall,'GV-Berechnung-Gülleanfall'!$T21)","v":0},{"$f":"INDEX(GVE,'GV-Berechnung-Gülleanfall'!$T21)","v":0},0,{"$f":"INDEX(Mistanfall,'GV-Berechnung-Gülleanfall'!$T21)","v":0},{"$f":"INDEX(MistDichte,'GV-Berechnung-Gülleanfall'!$T21)","v":0}]
["--"," --",0,null,null,0,null,0,null,0,null,null,0,null,null,0,null,null,1,1,1,{"$f":"INDEX(Gülleanfall,'GV-Berechnung-Gülleanfall'!$T22)","v":0},{"$f":"INDEX(Jaucheanfall,'GV-Berechnung-Gülleanfall'!$T22)","v":0},{"$f":"INDEX(GVE,'GV-Berechnung-Gülleanfall'!$T22)","v":0},0,{"$f":"INDEX(Mistanfall,'GV-Berechnung-Gülleanfall'!$T22)","v":0},{"$f":"INDEX(MistDichte,'GV-Berechnung-Gülleanfall'!$T22)","v":0}]
["--"," --",0,null,null,0,null,0,null,0,null,null,0,null,null,0,null,null,1,1,1,{"$f":"INDEX(Gülleanfall,'GV-Berechnung-Gülleanfall'!$T23)","v":0},{"$f":"INDEX(Jaucheanfall,'GV-Berechnung-Gülleanfall'!$T23)","v":0},{"$f":"INDEX(GVE,'GV-Berechnung-Gülleanfall'!$T23)","v":0},0,{"$f":"INDEX(Mistanfall,'GV-Berechnung-Gülleanfall'!$T23)","v":0},{"$f":"INDEX(MistDichte,'GV-Berechnung-Gülleanfall'!$T23)","v":0}]
["--"," --",0,null,null,0,null,0,null,0,null,null,0,null,null,0,null,null,1,1,1,{"$f":"INDEX(Gülleanfall,'GV-Berechnung-Gülleanfall'!$T24)","v":0},{"$f":"INDEX(Jaucheanfall,'GV-Berechnung-Gülleanfall'!$T24)","v":0},{"$f":"INDEX(GVE,'GV-Berechnung-Gülleanfall'!$T24)","v":0},0,{"$f":"INDEX(Mistanfall,'GV-Berechnung-Gülleanfall'!$T24)","v":0},{"$f":"INDEX(MistDichte,'GV-Berechnung-Gülleanfall'!$T24)","v":0}]
["Summe GVE",null,null,null,null,null,null,null,null,{"$f":"SUM(J15:L24)","v":0}]
["Anfall flüssiger Wirtschaftsdünger aus der Tierhaltung",null,null,null,null,null,null,null,null,null,null,null,{"$f":"SUM(M15:O25)","v":0},null,null,{"$f":"SUM(P15:R25)","v":0},null,null,null,null,null,null,null,null,{"$f":"SUM(Y15:Y25)","v":0}]
[]
["Oberflächenwasser u. sonstige","Niederschlagsmenge in mm /Jahr",null,null,null,null,null,null,null,700]
["Abwässer5)","Lageplan","Fläche",null,null,"Sonstiges"]
["Oberflächenbezeichnung","Nummer","m2",null,null,"m³/Jahr"]
[null,null,0,null,null,null,null,null,null,null,null,null,{"$f":"IFERROR($J$28*$C31/1000*0.7/12*6,0)","v":0},null,null,{"$f":"IFERROR($J$28*C31/1000*0.7/12*9,0)","v":0},null,null,null,null,null,null,null,null,{"$f":"IF($C31>1,$J$28*$C31/1000*0.7/12*12,\"\")","v":""}]
[0,null,0,null,null,null,null,null,null,null,null,null,{"$f":"IFERROR($J$28*$C32/1000*0.7/12*6,0)","v":0},null,null,{"$f":"IFERROR($J$28*C32/1000*0.7/12*9,0)","v":0},null,null,null,null,null,null,null,null,{"$f":"IF($C32>1,$J$28*$C32/1000*0.7/12*12,\"\")","v":""}]
[null,null,0,null,null,null,null,null,null,null,null,null,0,null,null,0,null,null,null,null,null,null,null,null,""]
[null,null,0,null,null,null,null,null,null,null,null,null,0,null,null,0,null,null,null,null,null,null,null,null,""]
["Sonstiges",null,null,null,null,0,null,null,null,null,null,null,{"$f":"F35/12*6","v":0},null,null,{"$f":"$F35/12*9","v":0},null,null,null,null,null,null,null,null,{"$f":"$F35/12*12","v":0}]
[null,null,0,null,null,null,null,null,null,null,null,null,{"$f":"F36/12*6","v":0},null,null,{"$f":"F36/12*9","v":0},null,null,null,null,null,null,null,null,{"$f":"$F36/12*12","v":0}]
["Lagerraumbedarf insgesamt",null,null,null,null,null,null,null,null,null,null,null,{"$f":"SUM(M26:O36)","v":0},null,null,{"$f":"SUM(P26:X36)","v":0},null,null,null,null,null,null,null,null,{"$f":"SUM(Y31:Y36)","v":0}]
[]
["Lagerkapazitätsberechnung6)",null,"Netto-",null,null,null,null,null,null,null,null,null,null,null,null,null,null,null,null,null,null,null,null,null,{"$f":"Y37+Y26","v":0}]
[null,"Lageplan","volumen7)"]
["Bezeichnung der Lagerstätte","Nummer","m³"]
[null,null,0]
[null,null,0]
[null,null,0]
[null,null,0,null,null,null,{"$f":"IF(ISERROR(J25/B55),\"\",\"Der Tierbesatz beträgt \"&ROUND(J25/B55,2)&\" GV/ha LF.\")","v":""},null,null,null,null,null,null,null,null,null,null,null,null,null,null,null,"GV/ha",{"$f":"IF(ISERROR(J25/B55),0,J25/B55)","v":0}]
[]
[null,null,0]
["geplante Lagerstätte",null,0]
["Summe Lagerraum:",null,{"$f":"SUM(C42:E48)","v":0}]
[]
["landwirtschaftlich genutzte Fläche",null,null,null,null,null,"Anfall in 12 Monaten:8)",null,null,null,null,null,null,null,{"$f":"ROUND(Y26,2)","v":0},null,null,"m³"]
[null,"ha LF",null,null,null,null,{"$f":"IF(O51=0,0,IF(O51-O51/J25*B55*2<=0,\"\",\"Abgabemenge bei 2,0 GV/ha\"))","v":0},null,null,null,null,null,null,null,{"$f":"IF(O51=0,0,IF(O51-O51/J25*B55*2<0,0,O51-O51/J25*B55*2))","v":0},null,null,{"$f":"IF(O51=0,0,IF(O51-O51/J25*B55*2<=0,\"\",\"m³\"))","v":0}]
["Gesamtflächen u. Nutzungsnachweis 2020",0]
["zusätzliche Flächen",null,null,null,null,null,"förderfähiger Anteil:9)",null,null,null,null,null,null,null,{"$f":"IF(C48>0,Y58/C48*100,0)","v":0},null,null,"%",null,null,null,null,"vorhandener Lagerraum",null,{"$f":"SUM(C42:E47)","v":0}]
[null,{"$f":"B53+B54","v":0},null,null,null,null,null,null,null,null,null,null,null,null,null,null,null,null,null,null,null,null,"Anrechnung größer 12M",null,{"$f":"IF(C49>=Y39,C49-Y39,0)","v":0}]
[]
["1) Bei Weidehaltung werden 7 Stallhaltungsmonate berücksichtigt.",null,null,null,null,null,null,null,null,null,null,null,null,null,null,null,null,null,null,null,null,null,"Anrechnung kleiner 6M",null,{"$f":"IF(Y54<M37,M37-C42,0)","v":0}]
["2) Bei Rinderhaltung Jahresdurchschnittsbestand aus HITier, sonst aus Buchführung etc.",null,null,null,null,null,null,null,null,null,null,null,null,null,null,null,null,null,null,null,null,null,"förderfähiger Lagerraum",null,{"$f":"C48-Y55-Y57","v":0}]
["3) GV - Schlüssel gem. DüV vom 27.05.2017"]
["4) Gülle-/ Jaucheanfall auf Grundlage der Düngeverordnung 2017 incl. Reinigungs- und Prozesswasser"]
["5) Oberflächen nicht abgedeckter Lager (Mistplatten, Güllebehälter). Alle sonstigen Flächen, wenn eingeleitet wird (Fahrsilo,"]
["    Hofbefestigung). Es werden 30% Verdunstung des Niederschlags berücksichtigt."]
["6) Aufstellung aller Lagerstätten und evtl. Pachtbehälter mit Kennzeichnung im Lageplan "]
["7) Bei Güllekellern u. abgedeckten Behältern sind 10 cm und bei offenen Behältern 20 cm von der Höhe als Freibord "]
["    abzuziehen"]
[null,null,null,null,null,null,null,null,null,null,null,null,null,null,"Stand: 11.11.2020"]

{"sheet":"Mist- Trockenkotanfall","index":1,"n_rows":64,"n_cols":18,"rows_kept":64,"cut":false,"hidden":false,"merged":[[22,2,22,4],[22,5,22,7],[22,8,22,10],[20,2,20,4],[20,5,20,7],[20,8,20,10],[21,2,21,4],[21,5,21,7],[21,8,21,10],[18,2,18,4],[18,5,18,7],[18,8,18,10],[19,2,19,4],[19,5,19,7],[19,8,19,10],[16,2,16,4],[16,5,16,7],[16,8,16,10],[17,2,17,4],[17,5,17,7],[17,8,17,10],[14,2,14,4],[14,5,14,7],[14,8,14,10],[15,2,15,4],[15,5,15,7],[15,8,15,10],[12,2,12,4],[12,5,12,7],[12,8,12,10],[13,2,13,4],[13,5,13,7],[13,8,13,10],[10,8,10,10],[11,2,11,4],[11,5,11,7],[11,8,11,10],[10,2,10,7],[3,0,3,17],[6,3,6,5],[6,6,6,7],[6,8,6,10],[6,11,6,13],[6,14,6,17],[28,2,28,4],[25,5,25,7],[26,5,26,7],[27,5,27,7],[28,5,28,7],[23,2,23,4],[23,5,23,7],[25,2,25,4],[26,2,26,4],[27,2,27,4]]}
["Berechnung des Mist- bzw. Trockenkotanfalls *"]
[]
[]
[{"$f":"'GV-Berechnung-Gülleanfall'!A4:R4","v":0}]
["Antragstellendes Unternehmen (Name, Vorname, ggf. Unternehmensbezeichnung)"]
[null,null,null,"EU-Registriernummer"]
[null,null,null,"Nation",null,null,"BL",null,"LK",null,null,"Gemeinde",null,null,"Betrieb"]
[null,null,null,2,7,6,"0",3,{"$f":"'GV-Berechnung-Gülleanfall'!I8","v":0},{"$f":"'GV-Berechnung-Gülleanfall'!J8","v":0},{"$f":"'GV-Berechnung-Gülleanfall'!K8","v":0},{"$f":"'GV-Berechnung-Gülleanfall'!L8","v":0},{"$f":"'GV-Berechnung-Gülleanfall'!M8","v":0},{"$f":"'GV-Berechnung-Gülleanfall'!N8","v":0},{"$f":"'GV-Berechnung-Gülleanfall'!O8","v":0},{"$f":"'GV-Berechnung-Gülleanfall'!P8","v":0},{"$f":"'GV-Berechnung-Gülleanfall'!Q8","v":0},{"$f":"'GV-Berechnung-Gülleanfall'!R8","v":0}]
[]
[]
["Tierhaltung",null,"Anfall2) 3)"]
[null,"Anzahl1)","m³ / Monat",null,null,"t / Monat"]
[{"$f":"'GV-Berechnung-Gülleanfall'!A15","v":"--"},{"$f":"'GV-Berechnung-Gülleanfall'!F15+'GV-Berechnung-Gülleanfall'!H15","v":0},{"$f":"B13*'GV-Berechnung-Gülleanfall'!Z15/12","v":0},null,null,{"$f":"IFERROR(C13/'GV-Berechnung-Gülleanfall'!AA15,0)","v":0}]
[{"$f":"'GV-Berechnung-Gülleanfall'!A16","v":"--"},{"$f":"'GV-Berechnung-Gülleanfall'!F16+'GV-Berechnung-Gülleanfall'!H16","v":0},{"$f":"B14*'GV-Berechnung-Gülleanfall'!Z16/12","v":0},null,null,{"$f":"IFERROR(C14/'GV-Berechnung-Gülleanfall'!AA16,0)","v":0}]
[{"$f":"'GV-Berechnung-Gülleanfall'!A17","v":"--"},{"$f":"'GV-Berechnung-Gülleanfall'!F17+'GV-Berechnung-Gülleanfall'!H17","v":0},{"$f":"B15*'GV-Berechnung-Gülleanfall'!Z17/12","v":0},null,null,{"$f":"IFERROR(C15/'GV-Berechnung-Gülleanfall'!AA17,0)","v":0}]
[{"$f":"'GV-Berechnung-Gülleanfall'!A18","v":"--"},{"$f":"'GV-Berechnung-Gülleanfall'!F18+'GV-Berechnung-Gülleanfall'!H18","v":0},{"$f":"B16*'GV-Berechnung-Gülleanfall'!Z18/12","v":0},null,null,{"$f":"IFERROR(C16/'GV-Berechnung-Gülleanfall'!AA18,0)","v":0}]
[{"$f":"'GV-Berechnung-Gülleanfall'!A19","v":"--"},{"$f":"'GV-Berechnung-Gülleanfall'!F19+'GV-Berechnung-Gülleanfall'!H19","v":0},{"$f":"B17*'GV-Berechnung-Gülleanfall'!Z19/12","v":0},null,null,{"$f":"IFERROR(C17/'GV-Berechnung-Gülleanfall'!AA19,0)","v":0}]
[{"$f":"'GV-Berechnung-Gülleanfall'!A20","v":"--"},{"$f":"'GV-Berechnung-Gülleanfall'!F20+'GV-Berechnung-Gülleanfall'!H20","v":0},{"$f":"B18*'GV-Berechnung-Gülleanfall'!Z20/12","v":0},null,null,{"$f":"IFERROR(C18/'GV-Berechnung-Gülleanfall'!AA20,0)","v":0}]
[{"$f":"'GV-Berechnung-Gülleanfall'!A21","v":"--"},{"$f":"'GV-Berechnung-Gülleanfall'!F21+'GV-Berechnung-Gülleanfall'!H21","v":0},{"$f":"B19*'GV-Berechnung-Gülleanfall'!Z21/12","v":0},null,null,{"$f":"IFERROR(C19/'GV-Berechnung-Gülleanfall'!AA21,0)","v":0}]
[{"$f":"'GV-Berechnung-Gülleanfall'!A22","v":"--"},{"$f":"'GV-Berechnung-Gülleanfall'!F22+'GV-Berechnung-Gülleanfall'!H22","v":0},{"$f":"B20*'GV-Berechnung-Gülleanfall'!Z22/12","v":0},null,null,{"$f":"IFERROR(C20/'GV-Berechnung-Gülleanfall'!AA22,0)","v":0}]
[{"$f":"'GV-Berechnung-Gülleanfall'!A23","v":"--"},{"$f":"'GV-Berechnung-Gülleanfall'!F23+'GV-Berechnung-Gülleanfall'!H23","v":0},{"$f":"B21*'GV-Berechnung-Gülleanfall'!Z23/12","v":0},null,null,{"$f":"IFERROR(C21/'GV-Berechnung-Gülleanfall'!AA23,0)","v":0}]
[{"$f":"'GV-Berechnung-Gülleanfall'!A24","v":"--"},{"$f":"'GV-Berechnung-Gülleanfall'!F24+'GV-Berechnung-Gülleanfall'!H24","v":0},{"$f":"B22*'GV-Berechnung-Gülleanfall'!Z24/12","v":0},null,null,{"$f":"IFERROR(C22/'GV-Berechnung-Gülleanfall'!AA24,0)","v":0}]
["Anfall / Monat",null,{"$f":"SUM(C13:E22)","v":0},null,null,{"$f":"SUM(F13:H22)*12","v":0}]
["Anfall 12 Monate",null,{"$f":"SUM(C13:E22)*12","v":0},null,null,{"$f":"SUM(F13:H22)*12","v":0}]
[]
["Lagerkapazitätsberechnung","Stapelhöhe m","m²",null,null,"m³"]
["vorhandene Lagerkapazität4)"]
["geplante Lagerstätte",null,null,null,null,{"$f":"C28*B28","v":0}]
["Lagerkapazität insgesamt",null,null,null,null,{"$f":"F27+F28","v":0}]
[]
[]
["1) Ø Jahresbestand mit Mist bzw. Trockenkotanfall (aus GV-Berechnung, Spalten Mist / Jauche übernommen)"]
["2) Mist-/ Trockenkotanfall auf Grundlage der Düngeverordnung 2017"]
["3) Bei Weidehaltung werden 7 Stallhaltungsmonate berücksichtigt"]
["4) Lageplan bzw. Beschreibung beifügen"]
[]
[]
["*) Nur bei Maßnahmen zum Bau von Mist- bzw. Trockenkotlagern mit den Antragsunterlagen einreichen."]
[]
[]
[]
[]
[]
[]
[]
[]
[]
[]
[]
[]
[]
[]
[]
[]
[]
[]
[]
[]
[]
[]
[]
[]
[]
[null,null,null,null,null,null,null,null,null,null,null,null,{"$f":"'GV-Berechnung-Gülleanfall'!O66","v":"Stand: 11.11.2020"}]

{"sheet":"förderfähiger Anteil","index":2,"n_rows":60,"n_cols":22,"rows_kept":60,"cut":false,"hidden":false,"merged":[[35,3,35,4],[4,0,4,17],[7,3,7,5],[7,6,7,7],[7,8,7,10],[7,11,7,13],[7,14,7,17]]}
["Förderung von Investitionen zur Verbesserung "]
["des Nährstoffeinsatzes (IVN)"]
["Wirtschaftsdüngerlager Berechnung des förderfähigen Anteils *"]
[]
[{"$f":"'GV-Berechnung-Gülleanfall'!A4:R4","v":0},null,null,null,null,null,null,null,null,null,null,null,null,null,null,null,null,null,null,"WDL für Tierhaltung",1]
["Antragstellendes Unternehmen (Name, Vorname, ggf. Unternehmensbezeichnung)",null,null,null,null,null,null,null,null,null,null,null,null,null,null,null,null,null,null,"WDL als Düngerlager",2]
[null,null,null,"EU-Registriernummer"]
[null,null,null,"Nation",null,null,"BL",null,"LK",null,null,"Gemeinde",null,null,"Betrieb"]
[null,null,null,2,7,6,"0",3,{"$f":"'GV-Berechnung-Gülleanfall'!I8","v":0},{"$f":"'GV-Berechnung-Gülleanfall'!J8","v":0},{"$f":"'GV-Berechnung-Gülleanfall'!K8","v":0},{"$f":"'GV-Berechnung-Gülleanfall'!L8","v":0},{"$f":"'GV-Berechnung-Gülleanfall'!M8","v":0},{"$f":"'GV-Berechnung-Gülleanfall'!N8","v":0},{"$f":"'GV-Berechnung-Gülleanfall'!O8","v":0},{"$f":"'GV-Berechnung-Gülleanfall'!P8","v":0},{"$f":"'GV-Berechnung-Gülleanfall'!Q8","v":0},{"$f":"'GV-Berechnung-Gülleanfall'!R8","v":0}]
[]
[]
["Berechnungsgrundlage:"]
[]
[{"$f":"IF(U14=1,T5,T6)","v":"WDL für Tierhaltung"},null,null,null,null,null,null,null,null,null,null,null,null,null,null,null,null,null,null,null,1]
[]
["landwirtschaftlich genutzte Fläche",{"$f":"'GV-Berechnung-Gülleanfall'!B55","v":0},"ha"]
["Besatzdichte",{"$f":"'GV-Berechnung-Gülleanfall'!X45","v":0},"GV/ha"]
["Lager für flüssige Wirtschaftsdünger"]
[]
["vorhandene Lagerstätten:",{"$f":"'GV-Berechnung-Gülleanfall'!Y54","v":0},"m³"]
["geplante Lagerstätte:",{"$f":"'GV-Berechnung-Gülleanfall'!C48","v":0},"m³"]
["Summe Lagerstätten:",{"$f":"B21+B20","v":0},"m³"]
["max. Wirtschaftsdüngerlagerung:",{"$f":"IF(U14=1,'GV-Berechnung-Gülleanfall'!Y39,B16*25)","v":0},"m³ ",{"$f":"IF(U14=1,\"(max. 12 Monate Lagerkapazität)\",\"(max. 25 m³/ha)\")","v":"(max. 12 Monate Lagerkapazität)"},null,null,null,null,null,null,null,null,null,null,null,null,null,null,null,"Anrechnung max.",null,{"$f":"IF(B22>B23,B22-B23,0)","v":0}]
["Mindestlagerkapazität:",{"$f":"IF(B17>3,'GV-Berechnung-Gülleanfall'!P37,'GV-Berechnung-Gülleanfall'!M37)","v":0},"m³ (6 Monate)",null,null,null,null,null,null,null,null,null,null,null,null,null,null,null,null,"Anerchnung min.",null,{"$f":"IF(B24>B20,B24-B20,0)","v":0}]
[null,null,null,null,null,null,null,null,null,null,null,null,null,null,null,null,null,null,null,null,null,{"$f":"V24+V23","v":0}]
["förderfähige Lagerstätte:",{"$f":"IF(B17>3,0,IF(B21-V25>0,B21-V25,0))","v":0},"m³"]
["förderfähiger Anteil:",{"$f":"IF(ISERROR(B26/B21*100),0,B26/B21*100)","v":0},"%"]
["Lagerkapazität:",{"$f":"IF(ISERROR(IF(U14=2,0,B22/(B23/12))),0,IF(U14=2,0,B22/(B23/12)))","v":0},"Monate"]
[]
["Anfall aus eig. Tierhaltung",{"$f":"V30","v":0},"m³ (Anfall 12 Monate ggf. mit Oberflächenwasser)",null,null,null,null,null,null,null,null,null,null,null,null,null,null,null,null,"Anfall 12 Monate",null,{"$f":"'GV-Berechnung-Gülleanfall'!Y39","v":0}]
["Aufnahmemenge bei Düngerlager:",{"$f":"IF(V33<0,0,V33)","v":0},"m³"]
[]
["Lager für Mist/Trockenkot",null,null,null,null,null,null,null,null,null,null,null,null,null,null,null,null,null,null,null,null,{"$f":"IF(U14=2,IF(B23>B22,B22-V30,B23-V30),0)","v":0}]
[]
["vorhandene Lagerstätten:",{"$f":"'Mist- Trockenkotanfall'!F27","v":0},"m³"]
["geplante Lagerstätte:",{"$f":"'Mist- Trockenkotanfall'!F28","v":0},"m³ /",0,null,"m²"]
["Summe Lagerstätten:",{"$f":"B36+B35","v":0},"m³",null,null,null,null,null,null,null,null,null,null,null,null,null,null,null,null,"Anrechnung max.",null,{"$f":"IF(B37>B38,B37-B38,0)","v":0}]
["max. Wirtschaftsdüngerlagerung:",{"$f":"'Mist- Trockenkotanfall'!C24","v":0},"m³ (max. 12 Monate Lagerkapazität)",null,null,null,null,null,null,null,null,null,null,null,null,null,null,null,null,"Anrechnung min.",null,{"$f":"IF(B39>B35,B39-B35,0)","v":0}]
["Mindestlagerkapazität:",{"$f":"'Mist- Trockenkotanfall'!C23*2","v":0},"m³ (2 Monate)",null,null,null,null,null,null,null,null,null,null,null,null,null,null,null,null,null,null,{"$f":"V38+V37","v":0}]
[]
["förderfähige Lagerstätte:",{"$f":"IF(B17>3,0,IF(B36-V39>0,B36-V39,0))","v":0},"m³"]
["förderfähiger Anteil:",{"$f":"IF(ISERROR(B41/B36*100),0,B41/B36*100)","v":0},"%"]
["Lagerkapazität:",{"$f":"IF(ISERROR(B37/(B38/12)),0,B37/(B38/12))","v":0},"Monate"]
[]
["Bei Mistlagern als Düngerlager können max. 4t Mist/ha ausgebracht werden. Es ist eine individuelle Berechnung der"]
["max. Größe, je nach Mistart, erforderlich."]
[]
[]
[]
["* Nur bei Maßnahmen zum Bau von Wirtschaftsdüngerlagern mit den Antragsunterlagen einzureichen."]
[]
[]
[]
[]
[]
[]
[]
[]
[]
[null,null,null,null,null,null,null,null,null,null,null,{"$f":"'GV-Berechnung-Gülleanfall'!O66","v":"Stand: 11.11.2020"}]

{"sheet":"Finanzierungsplan","index":3,"n_rows":35,"n_cols":19,"rows_kept":35,"cut":false,"hidden":false,"merged":[[9,1,10,1],[3,0,3,18],[6,4,6,6],[6,7,6,8],[6,9,6,11],[6,12,6,14],[6,15,6,18],[9,3,9,6],[10,3,10,6],[11,3,11,6],[12,3,12,6],[11,16,11,18],[12,16,12,18],[12,13,12,15],[13,3,13,6],[14,3,14,6],[13,16,13,18],[14,16,14,18],[13,13,13,15],[14,13,14,15],[14,10,14,12],[13,10,13,12],[21,15,21,18],[22,3,22,6],[15,3,15,6],[23,3,23,6],[23,7,23,10],[23,11,23,14],[23,15,23,18],[18,3,18,6],[20,3,20,6],[20,7,20,10],[20,11,20,14],[20,15,20,18],[17,3,17,6],[16,3,16,6],[21,3,21,6],[21,7,21,10],[24,15,24,18],[25,3,25,6],[25,7,25,10],[25,11,25,14],[25,15,25,18],[24,3,24,6],[24,7,24,10],[24,11,24,14],[26,15,26,18],[27,3,27,6],[27,7,27,10],[27,11,27,14],[27,15,27,18],[26,3,26,6],[26,7,26,10],[26,11,26,14],[21,11,21,14],[17,13,17,15],[18,13,18,15],[19,13,19,15],[9,16,9,18],[10,16,10,18],[9,13,9,15],[10,13,10,15],[11,13,11,15],[15,16,15,18],[16,16,16,18],[17,16,17,18],[18,16,18,18],[19,16,19,18],[11,10,11,12],[12,10,12,12],[15,13,15,15],[16,13,16,15],[15,10,15,12],[16,10,16,12],[17,10,17,12],[18,10,18,12],[9,7,9,9],[10,7,10,9],[11,7,11,9],[12,7,12,9],[13,7,13,9],[14,7,14,9],[15,7,15,9],[16,7,16,9],[18,7,18,9],[17,7,17,9],[9,10,9,12],[10,10,10,12]]}
["Förderung von Investitionen zur Verbesserung des Nährstoffeinsatzes (IVN)"]
["Berechnung der Fördermittel und Finanzierungsplan"]
[]
[{"$f":"'GV-Berechnung-Gülleanfall'!A4:R4","v":0}]
["Antragstellendes Unternehmen (Name, Vorname, ggf. Unternehmensbezeichnung)"]
[null,null,null,null,"EU-Registriernummer"]
[null,null,null,null,"Nation",null,null,"BL",null,"LK",null,null,"Gemeinde",null,null,"Betrieb"]
[null,null,null,null,2,7,6,"0",3,{"$f":"'GV-Berechnung-Gülleanfall'!I8","v":0},{"$f":"'GV-Berechnung-Gülleanfall'!J8","v":0},{"$f":"'GV-Berechnung-Gülleanfall'!K8","v":0},{"$f":"'GV-Berechnung-Gülleanfall'!L8","v":0},{"$f":"'GV-Berechnung-Gülleanfall'!M8","v":0},{"$f":"'GV-Berechnung-Gülleanfall'!N8","v":0},{"$f":"'GV-Berechnung-Gülleanfall'!O8","v":0},{"$f":"'GV-Berechnung-Gülleanfall'!P8","v":0},{"$f":"'GV-Berechnung-Gülleanfall'!Q8","v":0},{"$f":"'GV-Berechnung-Gülleanfall'!R8","v":0}]
[]
["Finanzierungsbedarf 1)","Beschreibung des\n Teilvorhabens \n(Ausführung, Größe, etc)","Investitions-volumen\n incl. MWSt.","nicht förderfähiger Betrag ",null,null,null," nicht förderfähige MWSt.",null,null,"förderfähig. Investitions- volumen ",null,null,"förderfähiger Anteil 2)",null,null,"förderfähiger Betrag"]
[null,null,"EUR","EUR",null,null,null,"EUR",null,null,"EUR",null,null,"%",null,null,"EUR"]
["separater Gülle-/ Jauchebehälter 3)",null,null,null,null,null,null,null,null,null,{"$f":"C12-D12-H12","v":0},null,null,{"$f":"'förderfähiger Anteil'!B27","v":0},null,null,{"$f":"K12*N12/100","v":0}]
["Festmistplatte 3)",null,null,null,null,null,null,null,null,null,0,null,null,{"$f":"'förderfähiger Anteil'!B42","v":0},null,null,0]
["Betreuung des Antragsverfahrens 4)",null,null,null,null,null,null,null,null,null,0,null,null,100,null,null,0]
["Abdeckung besteh. Lagerstätten 3)",null,0,0,null,null,null,null,null,null,0,null,null,100,null,null,0]
["Gülleaufbereitungsanlagen",null,null,null,null,null,null,null,null,null,0,null,null,100,null,null,0]
["digitale Landtechnik",null,0,null,null,null,null,null,null,null,{"$f":"C17-D17-H17","v":0},null,null,100,null,null,{"$f":"K17*N17/100","v":0}]
["Baugenehmigung, Statikprüfung 5)"]
["Gesamtkosten 6)",null,{"$f":"SUM(C12:C18)","v":0},{"$f":"SUM(D12:G17)","v":0},null,null,null,{"$f":"SUM(H12:J17)","v":0},null,null,{"$f":"SUM(K12:M17)","v":0},null,null,null,null,null,{"$f":"SUM(Q12:S17)","v":0}]
["Beantragte Fördermittel (Fördersatz 35 %, max. 70.000,- EUR)",null,null,null,null,null,null,null,null,null,null,null,null,null,null,null,{"$f":"IF('förderfähiger Anteil'!B17>3,0,IF(Q19>200000,70000,IF(Q19<10000,0,Q19*0.35)))","v":0}]
[]
["Finanzierungsmittel"]
[null,null,"EUR"]
["Eigenkapital"]
["Eigenleistung"]
["Fremdkapital"]
["Fördermittel",null,{"$f":"Q20","v":0}]
["Summe Finanzierungsmittel 6)",null,{"$f":"SUM(C24:C27)","v":0}]
[]
["1) Auf Grundlage der Kostenaufstellung eines Architekten oder Angebote "]
["2) die nach DüV. vorgeschriebene sowie Lagerkapazität über 12 Monate ist nicht förderfähig"]
["3) Einschl. Architektur- und Ingenieurleistungen, mit Ausnahme der Leistungsphase 9 (Objektbetreuung)"]
["4) Es sind max. 3.000,- EUR förderfähig (nur beim Bau separater Gülle-/ Jauchebehälter und Festmistplatten)"]
["5) Behördliche Gebühren sind nicht förderfähig"]
["6) Die Gesamtkosten und die Summe Finanzierungsmittel müssen übereinstimmen",null,null,null,null,null,null,null,null,null,null,null,null,null,null,{"$f":"'GV-Berechnung-Gülleanfall'!O66","v":"Stand: 11.11.2020"}]

{"sheet":"Ranking","index":4,"n_rows":49,"n_cols":22,"rows_kept":49,"cut":false,"hidden":false,"merged":[[21,5,21,6],[17,4,17,6],[18,4,18,6],[19,4,19,6],[20,4,20,6],[16,4,16,7],[4,0,4,16],[7,3,7,5],[7,6,7,7],[7,8,7,10],[7,11,7,13],[7,14,7,16]]}
["Förderung von Investitionen zur Verbesserung "]
["des Nährstoffeinsatzes (IVN)"]
["Ranking"]
[]
[{"$f":"'GV-Berechnung-Gülleanfall'!A4:R4","v":0}]
["Antragstellendes Unternehmen (Name, Vorname, ggf. Unternehmensbezeichnung)"]
[null,null,null,"EU-Registriernummer"]
[null,null,null,"Nation",null,null,"BL",null,"LK",null,null,"Gemeinde",null,null,"Betrieb"]
[null,null,null,2,7,6,"0",3,{"$f":"'GV-Berechnung-Gülleanfall'!I8","v":0},{"$f":"'GV-Berechnung-Gülleanfall'!J8","v":0},{"$f":"'GV-Berechnung-Gülleanfall'!K8","v":0},{"$f":"'GV-Berechnung-Gülleanfall'!L8","v":0},{"$f":"'GV-Berechnung-Gülleanfall'!M8","v":0},{"$f":"'GV-Berechnung-Gülleanfall'!N8","v":0},{"$f":"'GV-Berechnung-Gülleanfall'!O8","v":0},{"$f":"'GV-Berechnung-Gülleanfall'!P8","v":0},{"$f":"'GV-Berechnung-Gülleanfall'!Q8","v":0},{"$f":"'GV-Berechnung-Gülleanfall'!R8","v":0}]
[]
[]
["Ermittlung der Bearbeitungs- und Bewilligungsreihenfolge:"]
[null,null,null,null,null,null,null,null,null,null,null,null,null,null,null,null,null,null,null,"Summe","Teilbereich","Nummer"]
["Schwerpunkt ist der Teilbereich:",null,null,null,{"$f":"V19","v":1},{"$f":"U19","v":"separate Wirtschaftsdüngerlager"},null,null,null,null,null,null,null,null,null,null,null,null,null,{"$f":"Finanzierungsplan!N12+Finanzierungsplan!Q13","v":0},"separate Wirtschaftsdüngerlager",1]
[null,null,null,null,null,null,null,null,null,null,null,null,null,null,null,null,null,null,null,{"$f":"Finanzierungsplan!Q15","v":0},"Abdeckung besteh. Lagerstätten",2]
["Ranking:",null,null,null,null,null,null,null,null,null,null,null,null,null,null,null,null,null,null,{"$f":"Finanzierungsplan!Q16","v":0},"Gülleaufbereitungsanlagen",3]
[null,null,null,null,"GV/ha",null,null,null,null,null,null,null,null,null,null,null,null,null,null,{"$f":"Finanzierungsplan!Q17","v":0},"digitale Landtechnik",4]
[]
["Viehbesatz (GV/ha LF)",null,null,null,{"$f":"'GV-Berechnung-Gülleanfall'!X45","v":0},null,null,null,null,null,null,null,null,null,null,null,null,null,null,{"$f":"MAX(T14:T17)","v":0},{"$f":"VLOOKUP(T19,T14:V17,2,FALSE)","v":"separate Wirtschaftsdüngerlager"},{"$f":"VLOOKUP(T19,T14:V17,3,FALSE)","v":1}]
["Junglandwirt: 1) 2)",null,null,null,{"$f":"IF(S20=FALSE,0,-0.2)","v":0},null,null,null,null,null,null,null,null,null,null,null,null,null,false]
["gasdichte Abdeckung: 1) 3)",null,null,null,{"$f":"IF(S21=FALSE,0,-0.3)","v":0},null,null,null,null,null,null,null,null,null,null,null,null,null,false]
["Summe Ranking:",null,null,null,null,{"$f":"SUM(E18:G21)","v":0}]
[]
[]
[]
["1) zutreffendes ankreuzen"]
["2) Bei Junglandwirten weden 0,20 GV/ha abgezogen."]
["3) Wird eine gasdichte Abdeckung errichtet, werden 0,30 GV/ha abgezogen."]
[]
[]
[]
[]
[]
[]
[]
[]
[]
[]
[]
[]
[]
[]
[]
[]
[]
[]
[]
[]
[null,null,null,null,null,null,null,null,null,null,null,null,{"$f":"'GV-Berechnung-Gülleanfall'!O66","v":"Stand: 11.11.2020"}]

{"sheet":"Stammdaten-Tierhaltung","index":5,"n_rows":68,"n_cols":6,"rows_kept":68,"cut":false,"hidden":false,"merged":[[0,1,0,3]]}
[null,"Anfall Volumen\nanfall\nm³/Stallpl."]
["Tierart",null,null,"Mist /","Lagerungs-"]
[null,"Gülle","Jauche","Trockenkot","dichte - Mist","GV-Schlüssel"]
[null,"m³","m³","m³","m³ / t","gem. DüV"]
["--"]
["Milchkuh, Laufstall, 6000 kg Milch p.a.",27,14,18,1.25,1]
["Milchkuh, Laufstall, 8000 kg Milch p.a.",28,14.4,18.8,1.25,1]
["Milchkuh, Laufstall, 10000 kg Milch p.a.",29,14.8,20,1.25,1]
["Milchkuh, Laufstall, 12000 kg Milch p.a.",30,15.2,21.3,1.25,1]
["Milchkuh, Anbind., 6000 kg Milch p.a.",21.4,8.4,18,1.25,1]
["Milchkuh, Anbind., 8000 kg Milch p.a.",22.4,8.8000000000000007,18.8,1.25,1]
["Milchkuh, Anbind., 10000 kg Milch p.a.",23.4,9.1999999999999993,20,1.25,1]
["Milchkuh, Anbind., 12000 kg Milch p.a.",24.4,9.6,21.3,1.25,1]
["Färsen über 24 Monate",14.1,3.6,15.1,1.25,1]
["Jungrinder weiblich (13 - 24 Monate)",11.4,2.9,12.3,1.25,0.7]
["Jungrinder weiblich (7 - 12 Monate)",7.4,1.9,8,1.25,0.3]
["Kalb (0 - 6 Monate)",4.5999999999999996,1.2,4.9000000000000004,1.25,0.3]
["Mutterkuh 500 kg LM",16,5.5,15,1.25,1]
["Mutterkuh 700 kg LM",20,6,19.8,1.25,1]
["--"]
["Mastbullen 675 kg (0 - 19 Monate)",6.7,2.4,5.8,1.25,0.45]
["Mastbullen 675 kg (13 - 19 Monate)",9.6999999999999993,3.5,8.3000000000000007,1.25,0.7]
["Mastbullen 675 kg (7 - 12 Monate)",6.6,2.4,5.8,1.25,0.3]
["Mastbullen 675 kg (0 - 6 Monate)",3.3,1.2,2.9,1.25,0.3]
["Mastbullen 750 kg (0 - 19 Monate)",7.3,3,5.75,1.25,0.45]
["Mastbullen 750 kg (13 - 19 Monate)",10.6,4.4000000000000004,8.3800000000000008,1.25,0.7]
["Mastbullen 750 kg (7 - 12 Monate)",7.3,3,5.75,1.25,0.3]
["Mastbullen 750 kg (0 - 6 Monate)",3.5,1.4,2.75,1.25,0.3]
["Jungrindermast, Fresser",5.5,0.5,5.75,1.25,0.3]
["Jungrindermast, Kälbermast",2.5,0.6,2.35,1.25,0.3]
["Jungrindermast, Rosa Kalbfleisch",4,0.5,0.42299999999999999,1.25,0.3]
["--"]
["Sau mit Ferkel. bis 8 kg, 22 Ferkel ",4.75,1.95,3.85,1.1000000000000001,0.3]
["Sau mit Ferkel. bis 8 kg, 25 Ferkel ",4.95,2.0499999999999998,3.96,1.1000000000000001,0.3]
["Sau mit Ferkel. bis 8 kg, 28 Ferkel ",5.15,2.15,4.07,1.1000000000000001,0.3]
["Ferkelaufzucht (8 bis 28 kg)",0.7,0.4,0.40699999999999997,1.1000000000000001,0.02]
["Jungsauenaufzucht, 28 bis 115 kg LM",1.92,0.72,1.518,1.1000000000000001,0.13]
["Jungsaueneingliederung",2.62,1.1200000000000001,2.0459999999999998,1.1000000000000001,0.3]
["Erberhaltung",3.72,1.62,2.706,1.1000000000000001,0.3]
["--"]
["Mastschwein",1.62,0.72,1.1879999999999999,1.1000000000000001,0.14000000000000001]
["Mastschwein, Brei-/Sensorfütterung",1.32,0.72,1.1879999999999999,1.1000000000000001,0.14000000000000001]
["Mastschwein, Flüssigfütterung",1.92,null,null,null,0.14000000000000001]
["--"]
["Legehennen ",null,null,4.3999999999999997E-2,2,4.0000000000000001E-3]
["Junghennen",null,null,1.4E-2,2,4.0000000000000001E-3]
["--"]
["Hähnchenmast, 2,6 kg Zuwachs/Tier",null,null,2.3599999999999999E-2,2,4.0000000000000001E-3]
["Hähnchenmast, 2,3 kg Zuwachs/Tier",null,null,2.2200000000000001E-2,2,4.0000000000000001E-3]
["Hähnchenmast, 1,85 kg Zuwachs/Tier",null,null,0.02,2,4.0000000000000001E-3]
["Hähnchenmast, 1,55 kg Zuwachs/Tier",null,null,1.8599999999999998E-2,2,4.0000000000000001E-3]
["Hähnchenmast, Elterntiere",null,null,4.3999999999999997E-2,2,4.0000000000000001E-3]
["--"]
["Putenmast, Hähne bis 21 Wochen",null,null,0.121,2.5,4.0000000000000001E-3]
["Putenmast, Hennen bis 16 Wochen",null,null,0.126,2.5,4.0000000000000001E-3]
["Putenmast, Hähne ab der 6 Woche",null,null,0.1525,2.5,4.0000000000000001E-3]
["Putenmast, Hennen ab der 6 Woche",null,null,0.15,2.5,4.0000000000000001E-3]
["Putenaufztucht gemischt bis 6 Woche",null,null,3.3000000000000002E-2,2.5,4.0000000000000001E-3]
["--"]
["Reitpferd",null,null,22.4,2,1.1000000000000001]
["Zuchtstute",null,null,22.4,2,1.25]
["Aufzuchtpferd, 6.-36. Monat",null,null,13.6,2,0.7]
["Pony",null,null,13.6,2,0.7]
["--"]
["Schaf mit Nachzucht, 1,5 Lämmer/Jahr",null,null,1.65,1.5,0.18]
["Schaf mit Nachzucht, 1,1 Lämmer/Jahr",null,null,1.65,1.5,0.16]
["--"]
["Ziege mit Nachzucht",null,null,1.5,1.5,0.18]